[Event "Late-Titled-Tuesday-Blitz-May-07-2024"]
[Site "Chess.com"]
[Date "2024.05.07"]
[Round "4"]
[White "kalxandria"]
[Black "Veleamater"]
[Result "0-1"]
[WhiteElo "2233"]
[BlackElo "2428"]
[TimeControl "180+1"]
[EndTime "14:40:17 PDT"]
[Termination "Veleamater won on time"]

1. e4 {[%clk 0:03:00.9]} 1... d6 {[%clk 0:02:59.8]} 2. d4 {[%clk 0:02:59.8]}
2... g6 {[%clk 0:02:59.7]} 3. Nf3 {[%clk 0:02:56]} 3... Bg7 {[%clk 0:02:59.5]}
4. Bc4 {[%clk 0:02:54.3]} 4... e6 {[%clk 0:02:56.6]} 5. c3 {[%clk 0:02:48.5]}
5... Ne7 {[%clk 0:02:56.5]} 6. O-O {[%clk 0:02:43]} 6... a6 {[%clk 0:02:56.4]}
7. Na3 {[%clk 0:02:34]} 7... O-O {[%clk 0:02:50.9]} 8. Nc2 {[%clk 0:02:31.9]}
8... b5 {[%clk 0:02:50.7]} 9. Bd3 {[%clk 0:02:30.9]} 9... Nbc6 {[%clk
0:02:49.7]} 10. Bg5 {[%clk 0:02:28.7]} 10... h6 {[%clk 0:02:49.1]} 11. Be3
{[%clk 0:02:26.9]} 11... e5 {[%clk 0:02:49]} 12. Qd2 {[%clk 0:02:18.4]} 12...
Kh7 {[%clk 0:02:48.4]} 13. a4 {[%clk 0:02:14.8]} 13... bxa4 {[%clk 0:02:32.2]}
14. Rxa4 {[%clk 0:02:13.6]} 14... Bb7 {[%clk 0:02:32.4]} 15. d5 {[%clk
0:02:07.5]} 15... Nb8 {[%clk 0:02:30.3]} 16. Rfa1 {[%clk 0:02:03.7]} 16... f5
{[%clk 0:02:29.7]} 17. exf5 {[%clk 0:01:58.9]} 17... gxf5 {[%clk 0:02:29.4]} 18.
Rh4 {[%clk 0:01:43.8]} 18... Ng8 {[%clk 0:02:25.4]} 19. g4 {[%clk 0:01:27.6]}
19... e4 {[%clk 0:02:18.4]} 20. Ng5+ {[%clk 0:00:48.9]} 20... Kh8 {[%clk
0:02:17.6]} 21. Be2 {[%clk 0:00:40.4]} 21... Nf6 {[%clk 0:02:06.8]} 22. Ne6
{[%clk 0:00:35.7]} 22... Qe7 {[%clk 0:01:54.7]} 23. Nxg7 {[%clk 0:00:34.9]}
23... Kxg7 {[%clk 0:01:52.7]} 24. Bxh6+ {[%clk 0:00:34.3]} 24... Kf7 {[%clk
0:01:50.2]} 25. Bxf8 {[%clk 0:00:32.4]} 25... Qxf8 {[%clk 0:01:49.9]} 26. gxf5
{[%clk 0:00:27.5]} 26... Qg7+ {[%clk 0:01:41.9]} 27. Kh1 {[%clk 0:00:22.6]}
27... e3 {[%clk 0:01:31.1]} 28. Nxe3 {[%clk 0:00:18.2]} 28... Qg5 {[%clk
0:01:30]} 29. Rh3 {[%clk 0:00:15.8]} 29... Nbd7 {[%clk 0:01:23.5]} 30. Rg1
{[%clk 0:00:15.4]} 30... Qf4 {[%clk 0:01:23.9]} 31. Rhg3 {[%clk 0:00:15.4]}
31... Rh8 {[%clk 0:01:21.6]} 32. Rg7+ {[%clk 0:00:15.1]} 32... Kf8 {[%clk
0:01:17.1]} 33. R1g2 {[%clk 0:00:15]} 33... Ne4 {[%clk 0:00:50.6]} 34. Qd4
{[%clk 0:00:08.5]} 34... Nxf2+ {[%clk 0:00:37]} 35. Kg1 {[%clk 0:00:08.1]} 35...
Nh3+ {[%clk 0:00:19]} 36. Kh1 {[%clk 0:00:08.3]} 36... Ne5 {[%clk 0:00:12.9]}
37. Qxf4 {[%clk 0:00:07.9]} 37... Nxf4 {[%clk 0:00:12.1]} 38. Rf2 {[%clk
0:00:08.8]} 38... Nxd5 {[%clk 0:00:09.4]} 39. Nxd5 {[%clk 0:00:06.5]} 39...
Bxd5+ {[%clk 0:00:08.9]} 40. Kg1 {[%clk 0:00:07]} 40... Nf7 {[%clk 0:00:09.1]}
41. f6 {[%clk 0:00:07]} 41... a5 {[%clk 0:00:05.9]} 42. Bf3 {[%clk 0:00:07.2]}
42... Be6 {[%clk 0:00:05.7]} 43. Bg2 {[%clk 0:00:06.6]} 43... Ne5 {[%clk
0:00:05.9]} 44. Re2 {[%clk 0:00:06.5]} 44... Rh6 {[%clk 0:00:04.6]} 45. Rxc7
{[%clk 0:00:06.3]} 45... Rxf6 {[%clk 0:00:04.4]} 46. Rf2 {[%clk 0:00:07.2]}
46... Rxf2 {[%clk 0:00:02.6]} 47. Kxf2 {[%clk 0:00:07.4]} 47... Nc4 {[%clk
0:00:03.4]} 48. b3 {[%clk 0:00:06.2]} 48... Nd2 {[%clk 0:00:03]} 49. Kg3 {[%clk
0:00:06.3]} 49... Nxb3 {[%clk 0:00:02.7]} 50. Rb7 {[%clk 0:00:05.8]} 50... a4
{[%clk 0:00:01.1]} 51. Rb8+ {[%clk 0:00:06.7]} 51... Ke7 {[%clk 0:00:00.8]} 52.
Ra8 {[%clk 0:00:07.6]} 52... Nc5 {[%clk 0:00:00.5]} 53. Bf3 {[%clk 0:00:07.6]}
53... Kf6 {[%clk 0:00:01.4]} 54. Ra7 {[%clk 0:00:07.2]} 54... Ke5 {[%clk
0:00:02.3]} 55. Ra5 {[%clk 0:00:07.2]} 55... Bb3 {[%clk 0:00:02.5]} 56. Ra8
{[%clk 0:00:06.7]} 56... Ke6 {[%clk 0:00:02.9]} 57. h4 {[%clk 0:00:06.2]} 57...
Kd7 {[%clk 0:00:03.8]} 58. h5 {[%clk 0:00:06.3]} 58... Ne6 {[%clk 0:00:03.5]}
59. h6 {[%clk 0:00:05.9]} 59... Ng5 {[%clk 0:00:04.1]} 60. Kf4 {[%clk
0:00:04.8]} 60... Nh7 {[%clk 0:00:03.6]} 61. Be4 {[%clk 0:00:04.3]} 61... Nf6
{[%clk 0:00:04]} 62. h7 {[%clk 0:00:04.3]} 62... Nxe4 {[%clk 0:00:04.1]} 63.
h8=Q {[%clk 0:00:02.6]} 63... Nc5 {[%clk 0:00:03.7]} 64. Qg7+ {[%clk 0:00:03.5]}
64... Kc6 {[%clk 0:00:04.2]} 65. Rc8+ {[%clk 0:00:03.6]} 65... Kd5 {[%clk
0:00:04.8]} 66. Qd4+ {[%clk 0:00:03.5]} 66... Ke6 {[%clk 0:00:04.9]} 67. Re8+
{[%clk 0:00:02.1]} 67... Kd7 {[%clk 0:00:04.9]} 0-1

[Event "Late-Titled-Tuesday-Blitz-May-07-2024"]
[Site "Chess.com"]
[Date "2024.05.07"]
[Round "4"]
[White "Temirlan_Baltabaev"]
[Black "GoltsevDmitry2000"]
[Result "1-0"]
[WhiteElo "2572"]
[BlackElo "2742"]
[TimeControl "180+1"]
[EndTime "14:40:18 PDT"]
[Termination "Temirlan_Baltabaev won by checkmate"]

1. d4 {[%clk 0:03:00.9]} 1... e6 {[%clk 0:02:45.7]} 2. Nf3 {[%clk 0:03:00.4]}
2... d5 {[%clk 0:02:44.3]} 3. g3 {[%clk 0:02:59.9]} 3... Nf6 {[%clk 0:02:43.3]}
4. Bg2 {[%clk 0:03:00.1]} 4... c5 {[%clk 0:02:44.2]} 5. c4 {[%clk 0:02:57.6]}
5... Nc6 {[%clk 0:02:45.1]} 6. O-O {[%clk 0:02:56.6]} 6... dxc4 {[%clk
0:02:44.3]} 7. Ne5 {[%clk 0:02:55.2]} 7... Nxe5 {[%clk 0:02:36.9]} 8. dxe5
{[%clk 0:02:53]} 8... Qxd1 {[%clk 0:02:37.6]} 9. Rxd1 {[%clk 0:02:52.6]} 9...
Nd7 {[%clk 0:02:38]} 10. f4 {[%clk 0:02:50.3]} 10... a6 {[%clk 0:02:35.3]} 11.
Na3 {[%clk 0:02:47.1]} 11... Nb6 {[%clk 0:02:34.3]} 12. Be3 {[%clk 0:02:45.6]}
12... Be7 {[%clk 0:02:27.2]} 13. Rac1 {[%clk 0:02:44.6]} 13... Nd5 {[%clk
0:02:11.6]} 14. Nxc4 {[%clk 0:02:36.8]} 14... Nxe3 {[%clk 0:02:05.9]} 15. Nxe3
{[%clk 0:02:36.8]} 15... Rb8 {[%clk 0:01:52.6]} 16. Nc4 {[%clk 0:02:34.6]} 16...
b6 {[%clk 0:01:51.8]} 17. Bc6+ {[%clk 0:02:32.1]} 17... Kf8 {[%clk 0:01:50.2]}
18. Nd6 {[%clk 0:02:30.9]} 18... Bxd6 {[%clk 0:01:24]} 19. exd6 {[%clk
0:02:26.6]} 19... Bb7 {[%clk 0:01:22.8]} 20. Bxb7 {[%clk 0:02:21.1]} 20... Rxb7
{[%clk 0:01:21.9]} 21. b4 {[%clk 0:02:20.1]} 21... Ke8 {[%clk 0:01:14]} 22. bxc5
{[%clk 0:02:18.1]} 22... bxc5 {[%clk 0:01:14.9]} 23. Rxc5 {[%clk 0:02:17.9]}
23... Kd7 {[%clk 0:01:14.6]} 24. e4 {[%clk 0:02:15.8]} 24... f6 {[%clk
0:00:29.9]} 25. e5 {[%clk 0:02:14.7]} 25... fxe5 {[%clk 0:00:30]} 26. fxe5
{[%clk 0:02:15.3]} 26... Rf8 {[%clk 0:00:27.6]} 27. Rdc1 {[%clk 0:02:14]} 27...
Rf5 {[%clk 0:00:22.8]} 28. Rc7+ {[%clk 0:02:13.5]} 28... Rxc7 {[%clk 0:00:22.7]}
29. Rxc7+ {[%clk 0:02:14.4]} 29... Kd8 {[%clk 0:00:23.3]} 30. Rc5 {[%clk
0:02:07.3]} 30... h5 {[%clk 0:00:18.8]} 31. Kg2 {[%clk 0:02:06.9]} 31... g5
{[%clk 0:00:16.8]} 32. h3 {[%clk 0:02:03.5]} 32... g4 {[%clk 0:00:15.8]} 33.
hxg4 {[%clk 0:02:03.3]} 33... hxg4 {[%clk 0:00:16.7]} 34. a4 {[%clk 0:01:59.6]}
34... Kd7 {[%clk 0:00:14.5]} 35. Rc7+ {[%clk 0:01:53.3]} 35... Kd8 {[%clk
0:00:15.1]} 36. Rc5 {[%clk 0:01:52.8]} 36... Kd7 {[%clk 0:00:15.4]} 37. Ra5
{[%clk 0:01:52]} 37... Kd8 {[%clk 0:00:12.4]} 38. Rxa6 {[%clk 0:01:46.2]} 38...
Rxe5 {[%clk 0:00:12.3]} 39. Ra7 {[%clk 0:01:45.7]} 39... Re2+ {[%clk 0:00:09.4]}
40. Kf1 {[%clk 0:01:45.7]} 40... Ra2 {[%clk 0:00:10.2]} 41. a5 {[%clk
0:01:44.4]} 41... Rd2 {[%clk 0:00:10.2]} 42. Rg7 {[%clk 0:01:42.1]} 42... Rxd6
{[%clk 0:00:08.1]} 43. Rxg4 {[%clk 0:01:42.7]} 43... Kc7 {[%clk 0:00:05.7]} 44.
Ra4 {[%clk 0:01:38]} 44... Rd2 {[%clk 0:00:03.9]} 45. a6 {[%clk 0:01:36.9]}
45... Kb8 {[%clk 0:00:04]} 46. g4 {[%clk 0:01:36.2]} 46... Ka7 {[%clk
0:00:03.7]} 47. Ke1 {[%clk 0:01:35.5]} 47... Rg2 {[%clk 0:00:03.3]} 48. Kf1
{[%clk 0:01:35.1]} 48... Rd2 {[%clk 0:00:03.5]} 49. Ra5 {[%clk 0:00:52.5]} 49...
Rd7 {[%clk 0:00:02.6]} 50. Kf2 {[%clk 0:00:50.5]} 50... Kb6 {[%clk 0:00:03.1]}
51. Ra3 {[%clk 0:00:49.2]} 51... Ra7 {[%clk 0:00:02.2]} 52. Kf3 {[%clk
0:00:48.4]} 52... Kb5 {[%clk 0:00:02.4]} 53. Ke4 {[%clk 0:00:47.9]} 53... Kb6
{[%clk 0:00:02.8]} 54. Ke5 {[%clk 0:00:45.9]} 54... Ra8 {[%clk 0:00:02.8]} 55.
Kxe6 {[%clk 0:00:44.5]} 55... Re8+ {[%clk 0:00:03.2]} 56. Kf7 {[%clk 0:00:42.1]}
56... Rd8 {[%clk 0:00:03.5]} 57. g5 {[%clk 0:00:41.8]} 57... Ka7 {[%clk
0:00:03.5]} 58. g6 {[%clk 0:00:41.8]} 58... Rd7+ {[%clk 0:00:04.4]} 59. Ke6
{[%clk 0:00:41.5]} 59... Rc7 {[%clk 0:00:05.3]} 60. Kf6 {[%clk 0:00:41.1]} 60...
Rc6+ {[%clk 0:00:05.3]} 61. Kg5 {[%clk 0:00:41.4]} 61... Rc5+ {[%clk 0:00:05.9]}
62. Kh6 {[%clk 0:00:41.7]} 62... Rc6 {[%clk 0:00:06.7]} 63. Kh7 {[%clk 0:00:42]}
63... Rc1 {[%clk 0:00:06.8]} 64. g7 {[%clk 0:00:41.5]} 64... Rh1+ {[%clk
0:00:07]} 65. Kg8 {[%clk 0:00:41.6]} 65... Rf1 {[%clk 0:00:07.3]} 66. Ra5 {[%clk
0:00:39.5]} 66... Rg1 {[%clk 0:00:07.1]} 67. Kf7 {[%clk 0:00:38.9]} 67... Rc1
{[%clk 0:00:07.1]} 68. g8=Q {[%clk 0:00:37.9]} 68... Rc7+ {[%clk 0:00:08]} 69.
Kf6 {[%clk 0:00:36]} 69... Rc6+ {[%clk 0:00:07.7]} 70. Qe6 {[%clk 0:00:34.5]}
70... Rc7 {[%clk 0:00:08.1]} 71. Qe3+ {[%clk 0:00:32.9]} 71... Kb8 {[%clk
0:00:08.2]} 72. Qb6+ {[%clk 0:00:31.8]} 72... Ka8 {[%clk 0:00:06.4]} 73. Qb7+
{[%clk 0:00:32.2]} 73... Rxb7 {[%clk 0:00:05.3]} 74. axb7+ {[%clk 0:00:32.7]}
74... Kxb7 {[%clk 0:00:06.2]} 75. Rd5 {[%clk 0:00:32.3]} 75... Kb6 {[%clk
0:00:07.1]} 76. Ke6 {[%clk 0:00:32.5]} 76... Kc6 {[%clk 0:00:08]} 77. Ke5 {[%clk
0:00:32.9]} 77... Kb6 {[%clk 0:00:08.3]} 78. Kd6 {[%clk 0:00:33.1]} 78... Kb7
{[%clk 0:00:08]} 79. Rc5 {[%clk 0:00:33.4]} 79... Kb6 {[%clk 0:00:08.3]} 80. Kd5
{[%clk 0:00:33.8]} 80... Kb7 {[%clk 0:00:08.2]} 81. Rc6 {[%clk 0:00:34.1]} 81...
Ka7 {[%clk 0:00:07.9]} 82. Kd6 {[%clk 0:00:33.9]} 82... Kb7 {[%clk 0:00:08.6]}
83. Kd7 {[%clk 0:00:34]} 83... Ka7 {[%clk 0:00:08.8]} 84. Kc7 {[%clk 0:00:33.7]}
84... Ka8 {[%clk 0:00:09.3]} 85. Ra6# {[%clk 0:00:33.8]} 1-0

[Event "Late-Titled-Tuesday-Blitz-May-07-2024"]
[Site "Chess.com"]
[Date "2024.05.07"]
[Round "4"]
[White "Meri-Arabidze"]
[Black "kingofthenil"]
[Result "1-0"]
[WhiteElo "2731"]
[BlackElo "2859"]
[TimeControl "180+1"]
[EndTime "14:40:38 PDT"]
[Termination "Meri-Arabidze won on time"]

1. Nf3 {[%clk 0:02:59.6]} 1... e6 {[%clk 0:02:33.7]} 2. c4 {[%clk 0:03:00]} 2...
d5 {[%clk 0:02:33.3]} 3. g3 {[%clk 0:03:00.5]} 3... Nf6 {[%clk 0:02:24.5]} 4.
Bg2 {[%clk 0:03:01]} 4... Be7 {[%clk 0:02:20.5]} 5. O-O {[%clk 0:03:00.9]} 5...
O-O {[%clk 0:02:16.9]} 6. b3 {[%clk 0:03:01.4]} 6... Nc6 {[%clk 0:02:15.2]} 7.
Bb2 {[%clk 0:03:01.4]} 7... d4 {[%clk 0:02:15]} 8. e3 {[%clk 0:02:55.5]} 8... e5
{[%clk 0:02:06.7]} 9. exd4 {[%clk 0:02:55.6]} 9... e4 {[%clk 0:02:06.4]} 10. Ng5
{[%clk 0:02:48.5]} 10... Nxd4 {[%clk 0:01:56.6]} 11. Nxe4 {[%clk 0:02:46.4]}
11... Nxe4 {[%clk 0:01:50.2]} 12. Bxe4 {[%clk 0:02:47.3]} 12... Bh3 {[%clk
0:01:50.2]} 13. Re1 {[%clk 0:02:43.5]} 13... Bf6 {[%clk 0:01:19.2]} 14. Nc3
{[%clk 0:02:25.3]} 14... g6 {[%clk 0:01:12]} 15. Bxb7 {[%clk 0:02:21.6]} 15...
Bg7 {[%clk 0:01:02.5]} 16. Bg2 {[%clk 0:02:09.5]} 16... Qd7 {[%clk 0:00:59.7]}
17. Nd5 {[%clk 0:02:01.1]} 17... Rfe8 {[%clk 0:00:51.6]} 18. Re3 {[%clk
0:01:28.7]} 18... c6 {[%clk 0:00:49.4]} 19. Bxh3 {[%clk 0:01:21.1]} 19... Qxh3
{[%clk 0:00:48.2]} 20. Nf4 {[%clk 0:01:18.1]} 20... Qf5 {[%clk 0:00:46.9]} 21.
Bc3 {[%clk 0:01:14]} 21... Nc2 {[%clk 0:00:43]} 22. Bxg7 {[%clk 0:01:04.4]}
22... Kxg7 {[%clk 0:00:33.3]} 23. Qc1 {[%clk 0:00:39.1]} 23... Nxe3 {[%clk
0:00:30.9]} 24. dxe3 {[%clk 0:00:39.3]} 24... Rad8 {[%clk 0:00:30.3]} 25. h4
{[%clk 0:00:25.8]} 25... h6 {[%clk 0:00:25.3]} 26. Qc3+ {[%clk 0:00:16.1]} 26...
Qf6 {[%clk 0:00:25.1]} 27. Qxf6+ {[%clk 0:00:16.2]} 27... Kxf6 {[%clk 0:00:26]}
28. Kf1 {[%clk 0:00:12.3]} 28... Rd2 {[%clk 0:00:26.4]} 29. Ke1 {[%clk
0:00:12.6]} 29... Red8 {[%clk 0:00:26.3]} 30. Nd5+ {[%clk 0:00:12.8]} 30...
R8xd5 {[%clk 0:00:14.6]} 31. cxd5 {[%clk 0:00:12.9]} 31... Rxd5 {[%clk
0:00:15.5]} 32. Ke2 {[%clk 0:00:12.7]} 32... Ra5 {[%clk 0:00:12.1]} 33. Kd3
{[%clk 0:00:12.1]} 33... g5 {[%clk 0:00:10.4]} 34. hxg5+ {[%clk 0:00:11.9]}
34... hxg5 {[%clk 0:00:11.3]} 35. a4 {[%clk 0:00:12.1]} 35... g4 {[%clk
0:00:11.6]} 36. Rc1 {[%clk 0:00:11.7]} 36... Rd5+ {[%clk 0:00:09.9]} 37. Ke2
{[%clk 0:00:11]} 37... c5 {[%clk 0:00:09.4]} 38. Rc4 {[%clk 0:00:11.2]} 38...
Kg5 {[%clk 0:00:10]} 39. Rc3 {[%clk 0:00:08.2]} 39... f5 {[%clk 0:00:09.8]} 40.
Rd3 {[%clk 0:00:08.1]} 40... Re5 {[%clk 0:00:10.5]} 41. Kd2 {[%clk 0:00:07.7]}
41... Re7 {[%clk 0:00:09.5]} 42. Kc3 {[%clk 0:00:07.9]} 42... Rh7 {[%clk
0:00:09.3]} 43. Kc4 {[%clk 0:00:08.2]} 43... Rc7 {[%clk 0:00:09.1]} 44. Rd5
{[%clk 0:00:07.7]} 44... Rh7 {[%clk 0:00:02.4]} 45. e4 {[%clk 0:00:07.2]} 45...
Kg6 {[%clk 0:00:01.4]} 46. exf5+ {[%clk 0:00:07]} 46... Kf6 {[%clk 0:00:01.2]}
47. Kxc5 {[%clk 0:00:06.9]} 47... Rh2 {[%clk 0:00:01.2]} 48. Rd2 {[%clk
0:00:05.5]} 48... Rh1 {[%clk 0:00:02.1]} 49. b4 {[%clk 0:00:05.2]} 49... Ra1
{[%clk 0:00:01.9]} 50. a5 {[%clk 0:00:05]} 50... Ra4 {[%clk 0:00:02.6]} 51. Kb5
{[%clk 0:00:05.1]} 51... Ra3 {[%clk 0:00:02.2]} 52. Rd7 {[%clk 0:00:04.2]} 52...
Rf3 {[%clk 0:00:00.7]} 53. Rxa7 {[%clk 0:00:04.2]} 53... Rxf5+ {[%clk
0:00:01.3]} 54. Ka4 {[%clk 0:00:03.3]} 54... Rxf2 {[%clk 0:00:02.2]} 55. Ra8
{[%clk 0:00:03.2]} 55... Rf3 {[%clk 0:00:01.8]} 56. Rf8+ {[%clk 0:00:02.7]}
56... Ke7 {[%clk 0:00:02]} 57. Rg8 {[%clk 0:00:03.2]} 57... Rxg3 {[%clk
0:00:02.6]} 58. a6 {[%clk 0:00:03.4]} 58... Rg1 {[%clk 0:00:03.2]} 59. Kb5
{[%clk 0:00:03.7]} 59... Kf7 {[%clk 0:00:02.8]} 60. Rg5 {[%clk 0:00:03]} 60...
Kf6 {[%clk 0:00:02.7]} 61. Rg8 {[%clk 0:00:03.3]} 61... Ra1 {[%clk 0:00:02.5]}
62. Rxg4 {[%clk 0:00:01.9]} 62... Ke6 {[%clk 0:00:02.8]} 63. Rc4 {[%clk
0:00:02.5]} 63... Kd7 {[%clk 0:00:03.2]} 64. Rc5 {[%clk 0:00:03.1]} 64... Rb1
{[%clk 0:00:01.8]} 65. Ka5 {[%clk 0:00:03.4]} 65... Ra1+ {[%clk 0:00:01.5]} 66.
Kb6 {[%clk 0:00:03.8]} 66... Kd6 {[%clk 0:00:02.2]} 67. b5 {[%clk 0:00:04]}
67... Kd7 {[%clk 0:00:02.4]} 68. Rc6 {[%clk 0:00:04.7]} 68... Kd8 {[%clk
0:00:02.2]} 69. Rd6+ {[%clk 0:00:04.8]} 69... Kc8 {[%clk 0:00:02.5]} 70. Rh6
{[%clk 0:00:05.3]} 70... Re1 {[%clk 0:00:01.8]} 71. Rh8+ {[%clk 0:00:05.5]}
71... Kd7 {[%clk 0:00:02.4]} 72. a7 {[%clk 0:00:06]} 72... Ra1 {[%clk
0:00:02.3]} 73. a8=Q {[%clk 0:00:06.1]} 73... Rxa8 {[%clk 0:00:03.2]} 74. Rxa8
{[%clk 0:00:06.3]} 74... Kd6 {[%clk 0:00:01.4]} 75. Ra7 {[%clk 0:00:07.2]} 75...
Kd5 {[%clk 0:00:01.3]} 76. Rc7 {[%clk 0:00:08]} 76... Kd6 {[%clk 0:00:01.4]} 77.
Rc6+ {[%clk 0:00:08.9]} 77... Kd7 {[%clk 0:00:01.7]} 78. Kc5 {[%clk 0:00:09.5]}
78... Kd8 {[%clk 0:00:01.7]} 79. b6 {[%clk 0:00:10.2]} 1-0

[Event "Late-Titled-Tuesday-Blitz-May-07-2024"]
[Site "Chess.com"]
[Date "2024.05.07"]
[Round "4"]
[White "rdarruda"]
[Black "TanitoluwaAps116"]
[Result "1-0"]
[WhiteElo "2568"]
[BlackElo "2731"]
[TimeControl "180+1"]
[EndTime "14:40:44 PDT"]
[Termination "rdarruda won by checkmate"]

1. d4 {[%clk 0:02:50.6]} 1... Nf6 {[%clk 0:02:53.7]} 2. Nf3 {[%clk 0:02:49.5]}
2... e6 {[%clk 0:02:53.6]} 3. g3 {[%clk 0:02:47.1]} 3... b5 {[%clk 0:02:52.5]}
4. Bg2 {[%clk 0:02:47]} 4... Bb7 {[%clk 0:02:39.9]} 5. O-O {[%clk 0:02:47.9]}
5... c5 {[%clk 0:02:38.3]} 6. c3 {[%clk 0:02:46.5]} 6... cxd4 {[%clk 0:02:29.9]}
7. cxd4 {[%clk 0:02:44]} 7... Be7 {[%clk 0:02:22.6]} 8. b3 {[%clk 0:02:42.4]}
8... O-O {[%clk 0:02:21]} 9. Bb2 {[%clk 0:02:42.2]} 9... d6 {[%clk 0:02:05.4]}
10. Nc3 {[%clk 0:02:41.7]} 10... a6 {[%clk 0:02:04.7]} 11. Rc1 {[%clk
0:02:39.6]} 11... Nbd7 {[%clk 0:02:03.4]} 12. Qd2 {[%clk 0:02:39.2]} 12... Rc8
{[%clk 0:01:59.3]} 13. Rfd1 {[%clk 0:02:38.7]} 13... Qb6 {[%clk 0:01:36.1]} 14.
Ne1 {[%clk 0:02:37.4]} 14... Bxg2 {[%clk 0:01:30.4]} 15. Nxg2 {[%clk 0:02:33.8]}
15... d5 {[%clk 0:01:27.7]} 16. Nf4 {[%clk 0:02:30.4]} 16... Bd6 {[%clk
0:01:15.1]} 17. e3 {[%clk 0:02:25.6]} 17... g6 {[%clk 0:01:10.1]} 18. Nd3 {[%clk
0:02:24.7]} 18... b4 {[%clk 0:00:43.5]} 19. Na4 {[%clk 0:02:23.9]} 19... Qb5
{[%clk 0:00:43.1]} 20. Rxc8 {[%clk 0:02:21.7]} 20... Rxc8 {[%clk 0:00:44]} 21.
Rc1 {[%clk 0:02:21.3]} 21... Rxc1+ {[%clk 0:00:39.1]} 22. Bxc1 {[%clk
0:02:13.8]} 22... Qc6 {[%clk 0:00:20.2]} 23. Bb2 {[%clk 0:02:13]} 23... a5
{[%clk 0:00:17]} 24. Qc1 {[%clk 0:02:11.5]} 24... Qxc1+ {[%clk 0:00:10.6]} 25.
Bxc1 {[%clk 0:02:12.4]} 25... Kf8 {[%clk 0:00:05.9]} 26. f3 {[%clk 0:02:10.8]}
26... Ke8 {[%clk 0:00:05.9]} 27. Kf2 {[%clk 0:02:10.8]} 27... Kd8 {[%clk
0:00:05.1]} 28. Ke2 {[%clk 0:02:11.4]} 28... Kc7 {[%clk 0:00:04.5]} 29. Bb2
{[%clk 0:02:11.1]} 29... Kc6 {[%clk 0:00:03.8]} 30. Nf2 {[%clk 0:02:07.8]} 30...
Kb5 {[%clk 0:00:03.9]} 31. e4 {[%clk 0:02:05.9]} 31... Bb8 {[%clk 0:00:02.9]}
32. Bc1 {[%clk 0:01:57.8]} 32... Ba7 {[%clk 0:00:02.4]} 33. Be3 {[%clk
0:01:57.8]} 33... Kc6 {[%clk 0:00:02.7]} 34. Nb2 {[%clk 0:01:55.1]} 34... Kb5
{[%clk 0:00:02.5]} 35. Nbd3 {[%clk 0:01:54]} 35... a4 {[%clk 0:00:02.4]} 36. g4
{[%clk 0:01:40.6]} 36... axb3 {[%clk 0:00:02.6]} 37. axb3 {[%clk 0:01:39.9]}
37... Bb6 {[%clk 0:00:03.3]} 38. h3 {[%clk 0:01:31.9]} 38... Bc7 {[%clk
0:00:03.5]} 39. Bd2 {[%clk 0:01:28]} 39... Ba5 {[%clk 0:00:02.8]} 40. Bg5 {[%clk
0:01:21.4]} 40... Ne8 {[%clk 0:00:02.4]} 41. Be7 {[%clk 0:01:20.4]} 41... Bb6
{[%clk 0:00:01.7]} 42. exd5 {[%clk 0:01:11.1]} 42... exd5 {[%clk 0:00:02.2]} 43.
Nxb4 {[%clk 0:01:11.3]} 43... Bxd4 {[%clk 0:00:02.6]} 44. Nxd5 {[%clk
0:01:11.4]} 44... Kc6 {[%clk 0:00:02.7]} 45. Nb4+ {[%clk 0:01:06.4]} 45... Kb5
{[%clk 0:00:02.6]} 46. Nc2 {[%clk 0:01:06.5]} 46... Bb6 {[%clk 0:00:02.2]} 47.
Ne4 {[%clk 0:01:01.1]} 47... Nc7 {[%clk 0:00:02.1]} 48. Ng5 {[%clk 0:01:00.4]}
48... f6 {[%clk 0:00:01.5]} 49. Nxh7 {[%clk 0:00:59.7]} 49... Nd5 {[%clk
0:00:02.1]} 50. Bd6 {[%clk 0:00:57.3]} 50... Kc6 {[%clk 0:00:01.7]} 51. Bg3
{[%clk 0:00:56.4]} 51... Nc5 {[%clk 0:00:01.9]} 52. Nd4+ {[%clk 0:00:51.2]}
52... Kd7 {[%clk 0:00:02]} 53. Nf8+ {[%clk 0:00:50.4]} 53... Ke7 {[%clk
0:00:01.9]} 54. Nxg6+ {[%clk 0:00:51.3]} 54... Kf7 {[%clk 0:00:02]} 55. Nf4
{[%clk 0:00:48.8]} 55... Nb4 {[%clk 0:00:01.9]} 56. Ng2 {[%clk 0:00:37.8]} 56...
Nd7 {[%clk 0:00:01.9]} 57. Bf2 {[%clk 0:00:33.2]} 57... Nc5 {[%clk 0:00:02]} 58.
Ne1 {[%clk 0:00:32.1]} 58... Nd7 {[%clk 0:00:02.1]} 59. Ndc2 {[%clk 0:00:28.6]}
59... Nd5 {[%clk 0:00:01.7]} 60. Bxb6 {[%clk 0:00:26.9]} 60... N7xb6 {[%clk
0:00:02.6]} 61. Nd3 {[%clk 0:00:26.7]} 61... Ke6 {[%clk 0:00:02.7]} 62. h4
{[%clk 0:00:24]} 62... Nd7 {[%clk 0:00:02.3]} 63. h5 {[%clk 0:00:24.3]} 63...
Kf7 {[%clk 0:00:01.5]} 64. Nd4 {[%clk 0:00:23.7]} 64... Kg7 {[%clk 0:00:01.3]}
65. b4 {[%clk 0:00:23.5]} 65... N7b6 {[%clk 0:00:01.1]} 66. b5 {[%clk
0:00:23.7]} 66... Nc4 {[%clk 0:00:01.8]} 67. Ne6+ {[%clk 0:00:22.4]} 67... Kf7
{[%clk 0:00:02.2]} 68. Ndf4 {[%clk 0:00:22]} 68... Nc3+ {[%clk 0:00:02.4]} 69.
Kd3 {[%clk 0:00:22.1]} 69... Nxb5 {[%clk 0:00:00.9]} 70. Kxc4 {[%clk 0:00:21.9]}
70... Nd6+ {[%clk 0:00:01.4]} 71. Kd5 {[%clk 0:00:22.3]} 71... Ke7 {[%clk
0:00:02]} 72. h6 {[%clk 0:00:20.5]} 72... Nf7 {[%clk 0:00:02.2]} 73. h7 {[%clk
0:00:20.8]} 73... Nh8 {[%clk 0:00:02.3]} 74. Nh5 {[%clk 0:00:19.6]} 74... Kf7
{[%clk 0:00:02.6]} 75. Nhf4 {[%clk 0:00:19.1]} 75... Ke7 {[%clk 0:00:02.1]} 76.
Nd4 {[%clk 0:00:19.8]} 76... Kf7 {[%clk 0:00:02.2]} 77. Nf5 {[%clk 0:00:20.7]}
77... Ke8 {[%clk 0:00:01.7]} 78. Kd6 {[%clk 0:00:21]} 78... Kf8 {[%clk
0:00:02.1]} 79. Ke6 {[%clk 0:00:21.3]} 79... Nf7 {[%clk 0:00:02.5]} 80. Kxf6
{[%clk 0:00:21.7]} 80... Nh8 {[%clk 0:00:03.4]} 81. Ng6+ {[%clk 0:00:21.3]}
81... Ke8 {[%clk 0:00:03.1]} 82. Nxh8 {[%clk 0:00:21]} 82... Kd7 {[%clk
0:00:03.6]} 83. Ng6 {[%clk 0:00:21.7]} 83... Kc6 {[%clk 0:00:03.1]} 84. h8=Q
{[%clk 0:00:22.6]} 84... Kd5 {[%clk 0:00:04]} 85. Qd8+ {[%clk 0:00:21.5]} 85...
Kc4 {[%clk 0:00:04.4]} 86. Ne5+ {[%clk 0:00:21.7]} 86... Kc3 {[%clk 0:00:04.5]}
87. Qc7+ {[%clk 0:00:21.6]} 87... Kd2 {[%clk 0:00:04.6]} 88. Qd6+ {[%clk
0:00:21.1]} 88... Ke2 {[%clk 0:00:04.8]} 89. Nc4 {[%clk 0:00:19.3]} 89... Kf2
{[%clk 0:00:03.3]} 90. Qg3+ {[%clk 0:00:18.9]} 90... Ke2 {[%clk 0:00:02.7]} 91.
f4 {[%clk 0:00:19.2]} 91... Kf1 {[%clk 0:00:02.3]} 92. Qh2 {[%clk 0:00:18.8]}
92... Ke1 {[%clk 0:00:02.5]} 93. Nd4 {[%clk 0:00:18.4]} 93... Kf1 {[%clk
0:00:02.4]} 94. Ne3+ {[%clk 0:00:18]} 94... Ke1 {[%clk 0:00:02.2]} 95. Qe2#
{[%clk 0:00:18.3]} 1-0